Body,Body Name,Date,TransNo,Amount � (Excl VAT),Supplier name,Description,Expense Area,Expense Type,Expense Code,
http://opendatacommunities.org/id/london-borough-council/sutton,London Borough of Sutton,01/04/2020,1294814,39.85 , SHOPTO,39.85 - H301 0044 9999 - PLAYSTATION SHOPTO,Peoples Services Directorate,Client Care/Assistance,H301,
http://opendatacommunities.org/id/london-borough-council/sutton,London Borough of Sutton,15/04/2020,1294814,24.00 , WWW.BLOOMANDWILD.COM,FLOWERS,Peoples Services Directorate,Miscellaneous Expenses,F620,
http://opendatacommunities.org/id/london-borough-council/sutton,London Borough of Sutton,15/04/2020,1294814,23.00 , WWW.BLOOMANDWILD.COM,FLOWERS,Peoples Services Directorate,Miscellaneous Expenses,F620,
http://opendatacommunities.org/id/london-borough-council/sutton,London Borough of Sutton,21/04/2020,1294814,142.00 , AUTHSMTP.COM EMAIL,SUBSCRIPTION BULK EMAILS,Peoples Services Directorate,Subscriptions - General,F450,
http://opendatacommunities.org/id/london-borough-council/sutton,London Borough of Sutton,30/03/2020,1294814,86.17 , MAILCHIMP    MONTHLY,SUBSCRIPTION MARCH 2020,Peoples Services Directorate,Subscriptions - General,F450,
http://opendatacommunities.org/id/london-borough-council/sutton,London Borough of Sutton,06/04/2020,1294814,(66.94), SPORTSDIRECT.COM,REFUND,Peoples Services Directorate,Education Equipment,F009,
http://opendatacommunities.org/id/london-borough-council/sutton,London Borough of Sutton,18/04/2020,1294814,20.00 , OYSTER BUS AUTOLOAD,20.00 A530 0301 9999,Peoples Services Directorate,Travelling and Subsistence Allowances,A530,
http://opendatacommunities.org/id/london-borough-council/sutton,London Borough of Sutton,18/04/2020,1294814,20.00 , OYSTER AUTO TOPUP,20.00 A530 0301 9999,Peoples Services Directorate,Travelling and Subsistence Allowances,A530,
http://opendatacommunities.org/id/london-borough-council/sutton,London Borough of Sutton,06/04/2020,1294814,20.00 , OYSTER AUTO TOPUP,20.00 A530 0301 9999 OYSTER CARD,Peoples Services Directorate,Travelling and Subsistence Allowances,A530,
http://opendatacommunities.org/id/london-borough-council/sutton,London Borough of Sutton,19/04/2020,1294814,50.74 , AMZNMKTPLACE AMAZON.CO,"SPLIT - LITTLES & BLOOMZ, REUSABLE POCKET CLOTH NAPPY, FASTENER: POPPER, WITH 10 BAMBOO INSERTS, P1001BB1 (54.48%)",Peoples Services Directorate,Personal Requisites,F106,
http://opendatacommunities.org/id/london-borough-council/sutton,London Borough of Sutton,19/04/2020,1294814,5.09 , AMZNMKTPLACE AMAZON.CO,POSTAGE & PACKING (5.47%),Peoples Services Directorate,Personal Requisites,F106,
http://opendatacommunities.org/id/london-borough-council/sutton,London Borough of Sutton,18/04/2020,1294814,14.39 , AMZNMKTPLACE AMAZON.CO,"SPLIT - OHBABYKA 4-LAYER BABY BAMBOO REUSABLE LINERS FOR CLOTH NAPPIES 10PIECES, SUPER WATER ABSORBENT INSERT (100%)",Peoples Services Directorate,Personal Requisites,F106,
http://opendatacommunities.org/id/london-borough-council/sutton,London Borough of Sutton,24/04/2020,1294814,24.42 , ASDA SUPERSTORE,KP,Peoples Services Directorate,Personal Requisites,F106,
http://opendatacommunities.org/id/london-borough-council/sutton,London Borough of Sutton,23/04/2020,1294814,28.61 , LIDL GB LONDON,JD GROCERIES,Peoples Services Directorate,Personal Requisites,F106,
http://opendatacommunities.org/id/london-borough-council/sutton,London Borough of Sutton,21/04/2020,1294814,(24.99), ARGOS LTD,DR GARDEN - GOAL CANCELLED 24.99,Peoples Services Directorate,Personal Requisites,F106,
http://opendatacommunities.org/id/london-borough-council/sutton,London Borough of Sutton,19/04/2020,1294814,15.90 , PPOINT_ BOTTLE & BASKE,DR GROCERIES,Peoples Services Directorate,Personal Requisites,F106,
http://opendatacommunities.org/id/london-borough-council/sutton,London Borough of Sutton,15/04/2020,1294814,22.89 , PPOINT_ BOTTLE & BASKE,JC,Peoples Services Directorate,Personal Requisites,F106,
http://opendatacommunities.org/id/london-borough-council/sutton,London Borough of Sutton,10/04/2020,1294814,16.69 , ICELAND,DR GROCERIES,Peoples Services Directorate,Personal Requisites,F106,
http://opendatacommunities.org/id/london-borough-council/sutton,London Borough of Sutton,09/04/2020,1294814,100.00 , AMAZON.CO.UK B21DA9L55,IF AND JC BDAY,Peoples Services Directorate,Personal Requisites,F106,
http://opendatacommunities.org/id/london-borough-council/sutton,London Borough of Sutton,09/04/2020,1294814,44.97 , ARGOS LTD,DR GARDEN STUFF - SELF ISOLATING,Peoples Services Directorate,Personal Requisites,F106,
http://opendatacommunities.org/id/london-borough-council/sutton,London Borough of Sutton,09/04/2020,1294814,70.95 , ARGOS LTD,STARTUP BUYS,Peoples Services Directorate,Personal Requisites,F106,
http://opendatacommunities.org/id/london-borough-council/sutton,London Borough of Sutton,19/04/2020,1294814,27.79 , AMZNMKTPLACE AMAZON.CO,"SPLIT - LICTIN REUSABLE CLOTH NAPPIES - SET OF 6 ADJUSTABLE POCKET NAPPY DIAPER LEAK PROTECTION, 6PCS BAMBOO NAPPY INSERTS WITH 2 STORAGE BAGS, SUITABLE FOR M (29.84%)",Peoples Services Directorate,Personal Requisites,F106,
http://opendatacommunities.org/id/london-borough-council/sutton,London Borough of Sutton,19/04/2020,1294814,9.51 , AMZNMKTPLACE AMAZON.CO,SPLIT - CANNYMUM BAMBOO BIODEGRADABLE LINERS (200 SHEETS/ROLL). COMPACT ROLL (10.21%),Peoples Services Directorate,Personal Requisites,F106,
http://opendatacommunities.org/id/london-borough-council/sutton,London Borough of Sutton,31/03/2020,1294814,119.51 , SOUTHERN ELECTRIC,119.51 - H301 0304 9999 - SSE SOUTHERN ELECTRIC PAYMENT,Peoples Services Directorate,Client Care/Assistance,H301,
http://opendatacommunities.org/id/london-borough-council/sutton,London Borough of Sutton,31/03/2020,1294814,343.48 , WWW.MAIDSTONE.GOV.UK,343.48 - H301 0304 9999 - MAIDSTONE COUNCIL BILL,Peoples Services Directorate,Client Care/Assistance,H301,
http://opendatacommunities.org/id/london-borough-council/sutton,London Borough of Sutton,08/04/2020,1294814,169.86 , WWW.COURIEREXPERT.CO.U,TRANSPORT,Peoples Services Directorate,Client Care/Assistance,H301,
http://opendatacommunities.org/id/london-borough-council/sutton,London Borough of Sutton,14/04/2020,1294814,64.98 , LIDL GB LONDON,DR GARDEN,Peoples Services Directorate,Set Up Costs - Children Leaving Care,H336,
http://opendatacommunities.org/id/london-borough-council/sutton,London Borough of Sutton,09/04/2020,1294814,10.50 , ARGOS LTD,DR AERIAL,Peoples Services Directorate,Set Up Costs - Children Leaving Care,H336,
http://opendatacommunities.org/id/london-borough-council/sutton,London Borough of Sutton,07/04/2020,1294814,139.99 , ARGOS LTD,DR TV,Peoples Services Directorate,Set Up Costs - Children Leaving Care,H336,
http://opendatacommunities.org/id/london-borough-council/sutton,London Borough of Sutton,07/04/2020,1294814,170.49 , ARGOS LTD,MH TV AND AERIAL,Peoples Services Directorate,Set Up Costs - Children Leaving Care,H336,
http://opendatacommunities.org/id/london-borough-council/sutton,London Borough of Sutton,27/03/2020,1294814,159.99 , ARGOS LTD,JB SETTING UP,Peoples Services Directorate,Set Up Costs - Children Leaving Care,H336,
http://opendatacommunities.org/id/london-borough-council/sutton,London Borough of Sutton,22/04/2020,1294814,15.99 , AMZNMKTPLACE,"SPLIT - SET 500MM EASEL, 30X40CM CANVAS, ACRYLIC PAINTS 10X12ML, 5 FLAT BRUSHES, PELETTE - PAINTING KIT (100%)",Peoples Services Directorate,Personal Requisites,F106,
http://opendatacommunities.org/id/london-borough-council/sutton,London Borough of Sutton,17/04/2020,1294814,456.50 , WWW.COURIEREXPERT.CO.U,COURIER EXPERTS,Peoples Services Directorate,C.C.A Travel & Subsistance,H212,
http://opendatacommunities.org/id/london-borough-council/sutton,London Borough of Sutton,20/04/2020,1294814,244.00 , CURRYS ONLINE,CHROMEBOOK,Peoples Services Directorate,Client Care/Assistance,H301,
http://opendatacommunities.org/id/london-borough-council/sutton,London Borough of Sutton,10/04/2020,1294814,(424.95), ARGOS LTD,424.95 - F106 0311 9999 - ARGOS REFUND,Peoples Services Directorate,Personal Requisites,F106,
http://opendatacommunities.org/id/london-borough-council/sutton,London Borough of Sutton,07/04/2020,1294814,(349.99), ARGOS LTD,349.99 - F106 0311 9999 - ARGOS REFUND,Peoples Services Directorate,Personal Requisites,F106,
http://opendatacommunities.org/id/london-borough-council/sutton,London Borough of Sutton,07/04/2020,1294814,(214.99), ARGOS LTD,214.99 - F106 0311 9999 - ARGOS REFUND,Peoples Services Directorate,Personal Requisites,F106,
http://opendatacommunities.org/id/london-borough-council/sutton,London Borough of Sutton,08/04/2020,1294814,39.59 , MINICABIT,TRANSPORT,Peoples Services Directorate,C.C.A Travel & Subsistance,H212,
http://opendatacommunities.org/id/london-borough-council/sutton,London Borough of Sutton,13/04/2020,1294814,20.00 , OYSTER BUS AUTOLOAD,20.00 A530 0312 9999,Peoples Services Directorate,Travelling and Subsistence Allowances,A530,
http://opendatacommunities.org/id/london-borough-council/sutton,London Borough of Sutton,23/04/2020,1294814,420.00 , CRYSTAL LODGE HOTEL,ACCOMODATION,Peoples Services Directorate,Accommodation - Bed and Breakfast,H202,
http://opendatacommunities.org/id/london-borough-council/sutton,London Borough of Sutton,08/04/2020,1294814,840.00 , CRYSTAL LODGE HOTEL,ACCOMODATION,Peoples Services Directorate,Accommodation - Bed and Breakfast,H202,
http://opendatacommunities.org/id/london-borough-council/sutton,London Borough of Sutton,30/03/2020,1294814,48.75 , MINICABIT,48.75- H212 0316 9999 - MINICABIT TAXI.,Peoples Services Directorate,C.C.A Travel & Subsistance,H212,
http://opendatacommunities.org/id/london-borough-council/sutton,London Borough of Sutton,27/03/2020,1294814,112.41 , LUFTHANSA,112.41 - H212 0316 9999 - LUFTHANSA FLIGHTS (TOTAL 445.09),Peoples Services Directorate,C.C.A Travel & Subsistance,H212,
http://opendatacommunities.org/id/london-borough-council/sutton,London Borough of Sutton,27/03/2020,1294814,112.41 , LUFTHANSA,112.41 - H212 0316 9999 - LUFTHANSA FLIGHTS (TOTAL 445.09),Peoples Services Directorate,C.C.A Travel & Subsistance,H212,
http://opendatacommunities.org/id/london-borough-council/sutton,London Borough of Sutton,27/03/2020,1294814,21.00 , LUFTHANSA,21 - H212 0316 9999 - LUFTHANSA FLIGHTS (TOTAL 445.09),Peoples Services Directorate,C.C.A Travel & Subsistance,H212,
http://opendatacommunities.org/id/london-borough-council/sutton,London Borough of Sutton,27/03/2020,1294814,148.21 , LUFTHANSA,148.21 - H212 0316 9999 - LUFTHANSA FLIGHTS (TOTAL 445.09),Peoples Services Directorate,C.C.A Travel & Subsistance,H212,
http://opendatacommunities.org/id/london-borough-council/sutton,London Borough of Sutton,27/03/2020,1294814,51.06 , AIG,445.09 - H212 0316 9999 - LUFTHANSA FLIGHTS. 51.06 TRAVEL INSURANCE,Peoples Services Directorate,C.C.A Travel & Subsistance,H212,
http://opendatacommunities.org/id/london-borough-council/sutton,London Borough of Sutton,25/03/2020,1294814,925.21 , LASTMINUTE: FLIGHT LHR,925.20 - H212 0316 9999 - LAST MINUTE.COM FLIGHTS,Peoples Services Directorate,C.C.A Travel & Subsistance,H212,
http://opendatacommunities.org/id/london-borough-council/sutton,London Borough of Sutton,26/03/2020,1294814,327.93 , ARGOS LTD,ARGOS,Peoples Services Directorate,Personal Requisites,F106,
http://opendatacommunities.org/id/london-borough-council/sutton,London Borough of Sutton,23/04/2020,1294814,99.85 , FACEBK 5KNP4UNAL2,DOMESTIC ABUSE COVID-19 FACEBOOK ADVERTISING,Peoples Services Directorate,Advertising/Publicity (non Staff),F240,
http://opendatacommunities.org/id/london-borough-council/sutton,London Borough of Sutton,07/04/2020,1294814,(52.00), ARGOS LTD,TV UNIT 30 AND KIVES 22 ON PREVIOUS ORDER CANCELLED,Peoples Services Directorate,Set Up Costs - Children Leaving Care,H336,
http://opendatacommunities.org/id/london-borough-council/sutton,London Borough of Sutton,26/03/2020,1294814,747.68 , ARGOS LTD,THORNTON ROAD FURNTIURE COSTS,Peoples Services Directorate,Set Up Costs - Children Leaving Care,H336,
http://opendatacommunities.org/id/london-borough-council/sutton,London Borough of Sutton,03/04/2020,1294814,75.20 , 2BAA014197884 LTR FAMI,UK VISA APPLICATION,Peoples Services Directorate,Personal Requisites,F106,
http://opendatacommunities.org/id/london-borough-council/sutton,London Borough of Sutton,23/12/2019,1294814,"(3,000.00)", UKBA11298563234,REFUND,Peoples Services Directorate,Personal Requisites,F106,
http://opendatacommunities.org/id/london-borough-council/sutton,London Borough of Sutton,26/03/2020,1294814,420.00 , CRYSTAL LODGE HOTEL,420.00 - H202 0384 9999 - CRYSTAL LODGE HOTEL .,Peoples Services Directorate,Accommodation - Bed and Breakfast,H202,
http://opendatacommunities.org/id/london-borough-council/sutton,London Borough of Sutton,15/04/2020,1294814,38.60 , AMZNMKTPLACE,"SPLIT - MELISSA & DOUG EASEL COMPANION ACCESSORY SET (ARTS & CRAFTS, PROMOTES CREATIVITY, 25 PIECES, 27CM H X 13CM W X 48CM L, GREAT GIFT FOR GIRLS AND BOYS - (96.54%)",Peoples Services Directorate,LAC - Education,F269,
http://opendatacommunities.org/id/london-borough-council/sutton,London Borough of Sutton,15/04/2020,1294814,1.38 , AMZNMKTPLACE,BALANCING ENTRY AMOUNT (3.46%),Peoples Services Directorate,LAC - Education,F269,
http://opendatacommunities.org/id/london-borough-council/sutton,London Borough of Sutton,15/04/2020,1294814,33.29 , AMZNMKTPLACE,SPLIT - SPIELWERK KIDS PLAY TENT BALLS PIT POP UP TODDLER FOLDING PLAYHOUSE TUNNEL SET CHILDREN BOYS GIRLS BABIES INDOOR OUTDOOR (100%),Peoples Services Directorate,LAC - Education,F269,
http://opendatacommunities.org/id/london-borough-council/sutton,London Borough of Sutton,15/04/2020,1294814,66.66 , AMZNMKTPLACE,"SPLIT - MELISSA & DOUG DELUXE WOODEN STANDING ART EASEL (ARTS & CRAFTS, CHALKBOARD, DRY-ERASE BOARD, 119CM H  69CM W  66CM L , GREAT GIFT FOR GIRLS AND BO (100%)",Peoples Services Directorate,LAC - Education,F269,
http://opendatacommunities.org/id/london-borough-council/sutton,London Borough of Sutton,15/04/2020,1294814,15.71 , AMZNMKTPLACE,SPLIT - SAND AND WATER TABLE GARDEN SANDPIT PLAY SET TOY WATERING CAN SPADE SAND BUCKET (100%),Peoples Services Directorate,LAC - Education,F269,
http://opendatacommunities.org/id/london-borough-council/sutton,London Borough of Sutton,26/03/2020,1294814,25.00 , AMZNMKTPLACE,"SPLIT - WALKERCAM MP-7 8GB BLUETOOTH 4.1 MP3 PLAYER WITH TOUCH BUTTON, SPEAKER, ONE BUTTON VOICE RECORDER, FM RADIO, 30 HOURS PLAYBACK TIME, BLACK METAL CASE (100%)",Peoples Services Directorate,LAC - Education,F269,
http://opendatacommunities.org/id/london-borough-council/sutton,London Borough of Sutton,24/04/2020,1294814,10.32 , AMZNMKTPLACE,SPLIT - ORCHARD TOYS BUS STOP GAME (100%),Peoples Services Directorate,LAC - Education,F269,
http://opendatacommunities.org/id/london-borough-council/sutton,London Borough of Sutton,23/04/2020,1294814,2.24 , AMZNMKTPLACE AMAZON.CO,"SPLIT - CARTAMUNDI DISNEY PRINCESS PAIRS AND OLD MAID PLAYING CARDS, 1 DECK (100%)",Peoples Services Directorate,LAC - Education,F269,
http://opendatacommunities.org/id/london-borough-council/sutton,London Borough of Sutton,23/04/2020,1294814,5.13 , AMZNMKTPLACE AMAZON.CO,SPLIT - DISNEY PRINCESS STICKER SET & STICKER ALBUM (100%),Peoples Services Directorate,LAC - Education,F269,
http://opendatacommunities.org/id/london-borough-council/sutton,London Borough of Sutton,23/04/2020,1294814,8.48 , AMZNMKTPLACE,SPLIT - MAPOMINOES EUROPE - THE ULTIMATE GEOGRAPHY GAME - FUN AND EDUCATIONAL TRAVEL CARD GAME FOR KIDS TEENAGERS AND ADULTS. LIKE DOMINOES WITH MAPS. (13.86%),Peoples Services Directorate,LAC - Education,F269,
http://opendatacommunities.org/id/london-borough-council/sutton,London Borough of Sutton,23/04/2020,1294814,24.32 , AMZNMKTPLACE,SPLIT - GLOBE RUNNER - EDUCATIONAL FUN FAMILY BOARD GAME FOR BOTH KIDS AND ADULTS THAT RACES AROUND THE WORLD THROUGH EVERY COUNTRY. (39.74%),Peoples Services Directorate,LAC - Education,F269,
http://opendatacommunities.org/id/london-borough-council/sutton,London Borough of Sutton,23/04/2020,1294814,16.82 , AMZNMKTPLACE,"SPLIT - GOLIATH 1260 WORDSEARCH FUN WORD PUZZLE GAME FOR ALL THE FAMILY, MULTI (27.47%)",Peoples Services Directorate,LAC - Education,F269,
http://opendatacommunities.org/id/london-borough-council/sutton,London Borough of Sutton,23/04/2020,1294814,8.48 , AMZNMKTPLACE,SPLIT - HISTORY HEROES: SCIENTISTS CARD GAME (13.86%),Peoples Services Directorate,LAC - Education,F269,
http://opendatacommunities.org/id/london-borough-council/sutton,London Borough of Sutton,23/04/2020,1294814,3.10 , AMZNMKTPLACE,BALANCING ENTRY AMOUNT (5.08%),Peoples Services Directorate,LAC - Education,F269,
http://opendatacommunities.org/id/london-borough-council/sutton,London Borough of Sutton,22/04/2020,1294814,8.98 , AMZNMKTPLACE AMAZON.CO,SPLIT - JAQUES OF LONDON DINOSAUR ADVENTURE JIGSAW PUZZLE FOR KIDS - 150 PIECE JIGSAW PUZZLE FOR CHILDREN - RECOMMENDED PUZZLE FOR 4 5 6 7 8 YEAR OLDS (81.42%),Peoples Services Directorate,LAC - Education,F269,
http://opendatacommunities.org/id/london-borough-council/sutton,London Borough of Sutton,22/04/2020,1294814,2.05 , AMZNMKTPLACE AMAZON.CO,BALANCING ENTRY AMOUNT (18.58%),Peoples Services Directorate,LAC - Education,F269,
http://opendatacommunities.org/id/london-borough-council/sutton,London Borough of Sutton,22/04/2020,1294814,10.69 , AMZNMKTPLACE AMAZON.CO,SPLIT - ORCHARD TOYS FIRST TIMES TABLES GAME (100%),Peoples Services Directorate,LAC - Education,F269,
http://opendatacommunities.org/id/london-borough-council/sutton,London Borough of Sutton,22/04/2020,1294814,9.99 , AMZNMKTPLACE AMAZON.CO,SPLIT - E-DEALS SIZE 4 SOFT FOAM SPONGE INDOOR OUTDOOR FOOTBALL SOCCER BALL CHOOSE YOUR COLOUR (YELLOW) (100%),Peoples Services Directorate,LAC - Education,F269,
http://opendatacommunities.org/id/london-borough-council/sutton,London Borough of Sutton,21/04/2020,1294814,4.58 , AMZNMKTPLACE,SPLIT - GALT 1005101 REUSABLE STICKER BOOK-DINOSAURS (100%),Peoples Services Directorate,LAC - Education,F269,
http://opendatacommunities.org/id/london-borough-council/sutton,London Borough of Sutton,21/04/2020,1294814,18.70 , AMZNMKTPLACE AMAZON.CO,"SPLIT - KICKMASTER PREMIER GOAL - YELLOW, 6FT (100%)",Peoples Services Directorate,LAC - Education,F269,
http://opendatacommunities.org/id/london-borough-council/sutton,London Borough of Sutton,21/04/2020,1294814,11.69 , AMZNMKTPLACE AMAZON.CO,SPLIT - ORCHARD TOYS MATCH AND SPELL NEXT STEPS BOARD GAME (45.75%),Peoples Services Directorate,LAC - Education,F269,
http://opendatacommunities.org/id/london-borough-council/sutton,London Borough of Sutton,21/04/2020,1294814,14.30 , AMZNMKTPLACE AMAZON.CO,"SPLIT - ORCHARD TOYS WHAT'S THE TIME, MR WOLF GAME (55.95%)",Peoples Services Directorate,LAC - Education,F269,
http://opendatacommunities.org/id/london-borough-council/sutton,London Borough of Sutton,21/04/2020,1294814,(0.43), AMZNMKTPLACE AMAZON.CO,BALANCING ENTRY AMOUNT (-5.1%),Peoples Services Directorate,LAC - Education,F269,
http://opendatacommunities.org/id/london-borough-council/sutton,London Borough of Sutton,21/04/2020,1294814,33.99 , AMZNMKTPLACE,SPLIT - DAVID WALLIAMS WORLDS WORST CHILDREN COLLECTION 3 BOOKS SET (100%),Peoples Services Directorate,LAC - Education,F269,
http://opendatacommunities.org/id/london-borough-council/sutton,London Borough of Sutton,20/04/2020,1294814,3.79 , AMZNMKTPLACE,SPLIT - HENBRANDT 5 MINI YELLOW RUBBER SQUEAKY DUCKS & FISHING NET CHILDRENS BATH WATER FUN TOYS (100%),Peoples Services Directorate,LAC - Education,F269,
http://opendatacommunities.org/id/london-borough-council/sutton,London Borough of Sutton,21/04/2020,1294814,1.99 , AMZNMKTPLACE,SPLIT - MR. HAPPY (MR. MEN CLASSIC LIBRARY) (39.96%),Peoples Services Directorate,LAC - Education,F269,
http://opendatacommunities.org/id/london-borough-council/sutton,London Borough of Sutton,21/04/2020,1294814,2.99 , AMZNMKTPLACE,BALANCING ENTRY AMOUNT (60.04%),Peoples Services Directorate,LAC - Education,F269,
http://opendatacommunities.org/id/london-borough-council/sutton,London Borough of Sutton,15/04/2020,1294814,8.08 , AMAZON.CO.UK 4L6OE6L95,SPLIT - SKIP HOP ZOO STACK AND POUR BUCKETS (72.17%),Peoples Services Directorate,LAC - Education,F269,
http://opendatacommunities.org/id/london-borough-council/sutton,London Borough of Sutton,15/04/2020,1294814,3.12 , AMAZON.CO.UK 4L6OE6L95,BALANCING ENTRY AMOUNT (27.83%),Peoples Services Directorate,LAC - Education,F269,
http://opendatacommunities.org/id/london-borough-council/sutton,London Borough of Sutton,15/04/2020,1294814,2.07 , AMZNMKTPLACE AMAZON.CO,SPLIT - 5 MINI YELLOW RUBBER SQUEAKY DUCKS & FISHING NET CHILDRENS BATH WATER FUN TOYS (100%),Peoples Services Directorate,LAC - Education,F269,
http://opendatacommunities.org/id/london-borough-council/sutton,London Borough of Sutton,07/04/2020,1294814,217.37 , OUTDOOR TOYS,THERAPY SWING FOR HOME LEARNING PERIOD,Peoples Services Directorate,LAC - Education,F269,
http://opendatacommunities.org/id/london-borough-council/sutton,London Borough of Sutton,02/04/2020,1294814,17.75 , AMZNMKTPLACE,SPLIT - MY LITTLE PONY: BOOKS 1-9 FICTION PACK (100%),Peoples Services Directorate,LAC - Education,F269,
http://opendatacommunities.org/id/london-borough-council/sutton,London Borough of Sutton,01/04/2020,1294814,29.89 , AMZNMKTPLACE,SPLIT - OXFORD READING TREE: LEVEL 5: STORIES: PACK OF 6 (100%),Peoples Services Directorate,LAC - Education,F269,
http://opendatacommunities.org/id/london-borough-council/sutton,London Borough of Sutton,16/04/2020,1294814,6.22 , AMZNMKTPLACE,"SPLIT - MENTAL ARITHMETIC BOOK 4: YEAR 5, AGES 9-10 (100%)",Peoples Services Directorate,LAC - Education,F269,
http://opendatacommunities.org/id/london-borough-council/sutton,London Borough of Sutton,22/04/2020,1294814,17.29 , AMZNMKTPLACE,SPLIT - MATHS MADE EASY AGES 9-10 KEY STAGE 2 BEGINNER (MADE EASY WORKBOOKS) (100%),Peoples Services Directorate,LAC - Education,F269,
http://opendatacommunities.org/id/london-borough-council/sutton,London Borough of Sutton,22/04/2020,1294814,13.21 , AMZNMKTPLACE AMAZON.CO,SPLIT - ORCHARD TOYS FAIRY SNAKES AND LADDERS WITH LUDO (100%),Peoples Services Directorate,LAC - Education,F269,
http://opendatacommunities.org/id/london-borough-council/sutton,London Borough of Sutton,22/04/2020,1294814,10.46 , AMZNMKTPLACE AMAZON.CO,SPLIT - ORCHARD TOYS RAINBOW UNICORNS GAME (100%),Peoples Services Directorate,LAC - Education,F269,
http://opendatacommunities.org/id/london-borough-council/sutton,London Borough of Sutton,21/04/2020,1294814,6.16 , AMAZON.CO.UK TD3MW1IU5,SPLIT - PAW PATROL: WIPE-CLEAN NUMBERS (29.45%),Peoples Services Directorate,LAC - Education,F269,
http://opendatacommunities.org/id/london-borough-council/sutton,London Borough of Sutton,21/04/2020,1294814,8.15 , AMAZON.CO.UK TD3MW1IU5,SPLIT - SKIP HOP ZOO STACK AND POUR BUCKETS (46.75%),Peoples Services Directorate,LAC - Education,F269,
http://opendatacommunities.org/id/london-borough-council/sutton,London Borough of Sutton,21/04/2020,1294814,4.12 , AMAZON.CO.UK TD3MW1IU5,BALANCING ENTRY AMOUNT (23.8%),Peoples Services Directorate,LAC - Education,F269,
http://opendatacommunities.org/id/london-borough-council/sutton,London Borough of Sutton,20/04/2020,1294814,244.00 , CURRYS ONLINE,244.00 - H301 0547 9999 - CURRY'S PC WORLD LAPTOP .PNG,Peoples Services Directorate,Client Care/Assistance,H301,
http://opendatacommunities.org/id/london-borough-council/sutton,London Borough of Sutton,03/04/2020,1294814,8.32 , SPOTIFY UK,WEDDINGS MUSIC,Resources Directorate,Miscellaneous Expenses,F620,
http://opendatacommunities.org/id/london-borough-council/sutton,London Borough of Sutton,22/04/2020,1294814,237.44 , ARGOS LTD,ESSENTIAL FURNITURE ITEMS FOR HOMELESS HOUSEHOLD,"Environment, Housing & Regeneration Directorate",Other Services,F340,
http://opendatacommunities.org/id/london-borough-council/sutton,London Borough of Sutton,14/04/2020,1294814,199.97 , ARGOS LTD,ESSENTIAL FURNITURE ITEMS FOR HOMELESS HOUSEHOLD,"Environment, Housing & Regeneration Directorate",Other Services,F340,
http://opendatacommunities.org/id/london-borough-council/sutton,London Borough of Sutton,07/04/2020,1294814,173.32 , HAMSEY TRADING LIM,BED FOR HOMELESS HOUSEHOLD,"Environment, Housing & Regeneration Directorate",Other Services,F340,
http://opendatacommunities.org/id/london-borough-council/sutton,London Borough of Sutton,30/03/2020,1294814,(86.37), WWW.LUCASHOUSEHOTEL.CO,REFUND CONFERENCE CANCELLED,Resources Directorate,Hotel Accomodation,A512,
http://opendatacommunities.org/id/london-borough-council/sutton,London Borough of Sutton,30/03/2020,1294814,(86.37), WWW.LUCASHOUSEHOTEL.CO,REFUND - CANCELLED CONFERENCE,Resources Directorate,Hotel Accomodation,A512,
http://opendatacommunities.org/id/london-borough-council/sutton,London Borough of Sutton,11/04/2020,1294814,44.98 , AMZNMKTPLACE AMAZON.CO,HOME WORK EQUIPMENT,Resources Directorate,General Office Expenses,F235,
http://opendatacommunities.org/id/london-borough-council/sutton,London Borough of Sutton,15/04/2020,1294814,10.53 , MAILCHIMP    MONTHLY,WEB HOSTING,Resources Directorate,Fees - Computer Software,F384,
http://opendatacommunities.org/id/london-borough-council/sutton,London Borough of Sutton,14/04/2020,1294814,382.92 , MAILCHIMP    MONTHLY,WEB HOSTING,Resources Directorate,Fees - Computer Software,F384,
http://opendatacommunities.org/id/london-borough-council/sutton,London Borough of Sutton,20/04/2020,1294814,"2,000.00 ", WM MORRISONS HO CREDIT,MORRISON VOUCHERS,Resources Directorate,Miscellaneous Expenses,F620,
http://opendatacommunities.org/id/london-borough-council/sutton,London Borough of Sutton,15/04/2020,1294814,"2,000.00 ", WM MORRISONS HO CREDIT,MORRISON VOUCHERS,Resources Directorate,Miscellaneous Expenses,F620,
http://opendatacommunities.org/id/london-borough-council/sutton,London Borough of Sutton,06/04/2020,1294814,5.00 , LOYD 49-53 HIGH ST,EMERGENCY PETTY CASH - COVID 19 - FEE,Resources Directorate,Miscellaneous Expenses,F620,
http://opendatacommunities.org/id/london-borough-council/sutton,London Borough of Sutton,03/04/2020,1294814,200.00 , LOYD 49-53 HIGH ST,EMERGENCY PETTY CASH - COVID 19,Resources Directorate,Miscellaneous Expenses,F620,
http://opendatacommunities.org/id/london-borough-council/sutton,London Borough of Sutton,06/04/2020,1294814,5.00 ,,200 - F600 4114 6619 - CASH CONTINGENCY FOR SECURITY (SANDRA).PDF,Resources Directorate,Miscellaneous Expenses,F620,
http://opendatacommunities.org/id/london-borough-council/sutton,London Borough of Sutton,03/04/2020,1294814,200.00 , LOYD 49-53 HIGH ST,200 - F600 4114 6619 - CASH CONTINGENCY FOR SECURITY (SANDRA).PDF,Resources Directorate,Miscellaneous Expenses,F620,
http://opendatacommunities.org/id/london-borough-council/sutton,London Borough of Sutton,02/04/2020,1294814,70.00 , SITEGROUND HOSTING,WEBSITE HOSTING,Resources Directorate,Corporate Publicity,F356,
http://opendatacommunities.org/id/london-borough-council/sutton,London Borough of Sutton,05/04/2020,1294814,35.88 , 123 REG LTD,EMAIL ACCOUNT RENEWAL,Resources Directorate,Corporate Publicity,F356,
http://opendatacommunities.org/id/london-borough-council/sutton,London Borough of Sutton,31/03/2020,1294814,51.65 , FACEBK 28N3WR64V2,FACEBOOK ADVERTS FOR BUDGET AND COUNCIL TAX 2020/21 CAMPAIGN,Resources Directorate,Corporate Publicity,F356,
http://opendatacommunities.org/id/london-borough-council/sutton,London Borough of Sutton,25/04/2020,1294814,939.03 , ASDA STORES,HUB FOOD ORDER,Resources Directorate,Provisions - General,F150,
http://opendatacommunities.org/id/london-borough-council/sutton,London Borough of Sutton,18/04/2020,1294814,271.20 , ASDA STORES,HUB FOOD ORDER,Resources Directorate,Provisions - General,F150,
http://opendatacommunities.org/id/london-borough-council/sutton,London Borough of Sutton,18/04/2020,1294814,918.50 , ASDA STORES,HUB FOOD ORDER,Resources Directorate,Provisions - General,F150,
http://opendatacommunities.org/id/london-borough-council/sutton,London Borough of Sutton,13/04/2020,1294814,984.60 , ASDA STORES,HUB FOOD ORDER,Resources Directorate,Provisions - General,F150,
http://opendatacommunities.org/id/london-borough-council/sutton,London Borough of Sutton,10/04/2020,1294814,601.24 , ASDA STORES,HUB FOOD ORDER,Resources Directorate,Provisions - General,F150,
http://opendatacommunities.org/id/london-borough-council/sutton,London Borough of Sutton,10/04/2020,1294814,998.00 , ASDA STORES,HUB FOOD ORDER,Resources Directorate,Provisions - General,F150,
http://opendatacommunities.org/id/london-borough-council/sutton,London Borough of Sutton,08/04/2020,1294814,457.00 , CITY PANTRY,HUB FOOD ORDER,Resources Directorate,Provisions - General,F150,
http://opendatacommunities.org/id/london-borough-council/sutton,London Borough of Sutton,04/04/2020,1294814,906.16 , ASDA STORES,HUB FOOD ORDER,Resources Directorate,Provisions - General,F150,
http://opendatacommunities.org/id/london-borough-council/sutton,London Borough of Sutton,04/04/2020,1294814,192.00 , ASDA STORES,HUB FOOD ORDER,Resources Directorate,Provisions - General,F150,
http://opendatacommunities.org/id/london-borough-council/sutton,London Borough of Sutton,02/04/2020,1294814,627.00 , CITY PANTRY,HUB FOOD ORDER,Resources Directorate,Provisions - General,F150,
http://opendatacommunities.org/id/london-borough-council/sutton,London Borough of Sutton,08/04/2020,1294814,525.80 , ASDA STORES,COVID 19 ASDA FOOD PAYMENT FOR HUB,Resources Directorate,Assistance to Voluntary Organisations,F471,
http://opendatacommunities.org/id/london-borough-council/sutton,London Borough of Sutton,25/04/2020,1294814,146.58 , WWW.DOMINOS.CO.UK,FOOD FOR VOLUNTEERS RUNNING THE SUTTON HUB ON 25/4/2020 AS PART OF THE COVID-19 RESPONSE,Resources Directorate,Assistance to Voluntary Organisations,F471,
http://opendatacommunities.org/id/london-borough-council/sutton,London Borough of Sutton,11/04/2020,1294814,146.58 , WWW.DOMINOS.CO.UK,FOOD FOR VOLUNTEERS WORKING AT SUTTON HUB ON 11 APRIL 2020 DURING COVID-19,Resources Directorate,Assistance to Voluntary Organisations,F471,
http://opendatacommunities.org/id/london-borough-council/sutton,London Borough of Sutton,04/04/2020,1294814,110.35 , WWW.DOMINOS.CO.UK,FOOD FOR VOLUNTEERS WORKING AT SUTTON HUB PACKING EMERGENCY FOOD PARCELS DURING COVID-19 ON 4 APRIL 2020,Resources Directorate,Assistance to Voluntary Organisations,F471,
http://opendatacommunities.org/id/london-borough-council/sutton,London Borough of Sutton,22/04/2020,1294814,795.72 , ASDA STORES,COVID19 ASDA FOOD HUB PAYMENT,Resources Directorate,Assistance to Voluntary Organisations,F471,
http://opendatacommunities.org/id/london-borough-council/sutton,London Borough of Sutton,24/04/2020,1294814,"1,049.08 ", SAINSBURYS SACAT 2331,COVID 19 SAINSBURYS FOOD PAYMENT FOR HUB,Resources Directorate,Assistance to Voluntary Organisations,F471,
http://opendatacommunities.org/id/london-borough-council/sutton,London Borough of Sutton,24/04/2020,1294814,282.00 , SAINSBURYS 2331,COVID 19 SAINSBURYS FOOD PAYMENT FOR HUB,Resources Directorate,Assistance to Voluntary Organisations,F471,
http://opendatacommunities.org/id/london-borough-council/sutton,London Borough of Sutton,24/04/2020,1294814,"1,850.10 ", SAINSBURYS SACAT 2331,COVID 19 SAINSBURYS FOOD PAYMENT FOR HUB,Resources Directorate,Assistance to Voluntary Organisations,F471,
http://opendatacommunities.org/id/london-borough-council/sutton,London Borough of Sutton,24/04/2020,1294814,744.24 , TESCO STORE 3235,COVID 19 TESCO FOOD PAYMENT FOR HUB,Resources Directorate,Assistance to Voluntary Organisations,F471,
http://opendatacommunities.org/id/london-borough-council/sutton,London Borough of Sutton,21/04/2020,1294814,922.90 , ASDA STORES,COVID 19 ASDA FOOD PAYMENT FOR HUB,Resources Directorate,Assistance to Voluntary Organisations,F471,
http://opendatacommunities.org/id/london-borough-council/sutton,London Borough of Sutton,21/04/2020,1294814,"1,598.27 ", TESCO STORE 3235,COVID 19 TESCO FOOD PAYMENT FOR HUB,Resources Directorate,Assistance to Voluntary Organisations,F471,
http://opendatacommunities.org/id/london-borough-council/sutton,London Borough of Sutton,03/04/2020,1294814,219.00 , ASDA STORES,"HUB, FOOD PAYMENT",Resources Directorate,Assistance to Voluntary Organisations,F471,
http://opendatacommunities.org/id/london-borough-council/sutton,London Borough of Sutton,03/04/2020,1294814,951.60 , ASDA STORES,"HUB, FOOD PAYMENT",Resources Directorate,Assistance to Voluntary Organisations,F471,
http://opendatacommunities.org/id/london-borough-council/sutton,London Borough of Sutton,29/03/2020,1294814,110.37 , DOMINO'S PIZZA,"PIZZA ORDERED FOR VOLUNTEERS STAFFING THE SUTTON HUB FOOD DISTRIBUTION CENTRE AT WESTCROFT LEISURE CENTRE ON SUNDAY 29 MARCH 2020. PACKING FOOD PARCELS FOR THE ""SHIELDING COHORT"" DUE TO COVID-19.",Resources Directorate,Assistance to Voluntary Organisations,F471,
http://opendatacommunities.org/id/london-borough-council/sutton,London Borough of Sutton,23/04/2020,1294814,913.20 , ASDA STORES,ASDA FOOD PURCHASE FOR THE FOOD HUB,Resources Directorate,Assistance to Voluntary Organisations,F471,
http://opendatacommunities.org/id/london-borough-council/sutton,London Borough of Sutton,23/04/2020,1294814,"1,197.35 ", TESCO STORE 3235,COMMUNITY HUB FOOD - TESCO - 230420,Resources Directorate,Assistance to Voluntary Organisations,F471,
http://opendatacommunities.org/id/london-borough-council/sutton,London Borough of Sutton,20/04/2020,1294814,875.80 , ASDA STORES,COMMUNITY HUB FOOD - ASDA - 200420,Resources Directorate,Assistance to Voluntary Organisations,F471,
http://opendatacommunities.org/id/london-borough-council/sutton,London Borough of Sutton,16/04/2020,1294814,"2,184.36 ", TESCO STORE 3235,COMMUNITY HUB FOOD - TESCO - 160420,Resources Directorate,Assistance to Voluntary Organisations,F471,
http://opendatacommunities.org/id/london-borough-council/sutton,London Borough of Sutton,07/04/2020,1294814,938.62 , ASDA STORES,COMMUNITY HUB FOOD - ASDA - 070420,Resources Directorate,Assistance to Voluntary Organisations,F471,
http://opendatacommunities.org/id/london-borough-council/sutton,London Borough of Sutton,02/04/2020,1294814,"1,481.20 ", ASDA STORES,COMMUNITY HUB FOOD - ASDA - 020420,Resources Directorate,Assistance to Voluntary Organisations,F471,
http://opendatacommunities.org/id/london-borough-council/sutton,London Borough of Sutton,17/04/2020,1294814,"1,395.48 ", TESCO STORE 3235,COVID 19 TESCO FOOD PAYMENT FOR HUB,Resources Directorate,Assistance to Voluntary Organisations,F471,
http://opendatacommunities.org/id/london-borough-council/sutton,London Borough of Sutton,16/04/2020,1294814,"1,341.68 ", ASDA STORES,COVID 19 ASDA FOOD PAYMENT FOR HUB,Resources Directorate,Assistance to Voluntary Organisations,F471,
http://opendatacommunities.org/id/london-borough-council/sutton,London Borough of Sutton,14/04/2020,1294814,751.20 , ASDA STORES,COVID 19 ASDA FOOD PAYMENT FOR HUB,Resources Directorate,Assistance to Voluntary Organisations,F471,
http://opendatacommunities.org/id/london-borough-council/sutton,London Borough of Sutton,09/04/2020,1294814,906.10 , ASDA STORES,COVID 19 ASDA FOOD PAYMENT FOR HUB,Resources Directorate,Assistance to Voluntary Organisations,F471,
http://opendatacommunities.org/id/london-borough-council/sutton,London Borough of Sutton,09/04/2020,1294814,993.05 , ASDA STORES,COVID 19 ASDA FOOD PAYMENT FOR HUB,Resources Directorate,Assistance to Voluntary Organisations,F471,
http://opendatacommunities.org/id/london-borough-council/sutton,London Borough of Sutton,24/04/2020,1294814,517.92 , ASDA STORES,FOOD HUB PAYMENT,Resources Directorate,Assistance to Voluntary Organisations,F471,
http://opendatacommunities.org/id/london-borough-council/sutton,London Borough of Sutton,17/04/2020,1294814,947.70 , ASDA STORES,"HUB, FOOD PAYMENT",Resources Directorate,Assistance to Voluntary Organisations,F471,
http://opendatacommunities.org/id/london-borough-council/sutton,London Borough of Sutton,15/04/2020,1294814,957.28 , ASDA STORES,"HUB, FOOD PAYMENT",Resources Directorate,Assistance to Voluntary Organisations,F471,
http://opendatacommunities.org/id/london-borough-council/sutton,London Borough of Sutton,15/04/2020,1294814,222.00 , ASDA STORES,"HUB, FOOD PAYMENT",Resources Directorate,Assistance to Voluntary Organisations,F471,
http://opendatacommunities.org/id/london-borough-council/sutton,London Borough of Sutton,11/04/2020,1294814,918.06 , ASDA STORES,"HUB, FOOD PAYMENT",Resources Directorate,Assistance to Voluntary Organisations,F471,
http://opendatacommunities.org/id/london-borough-council/sutton,London Borough of Sutton,11/04/2020,1294814,815.54 , ASDA STORES,"HUB, FOOD PAYMENT",Resources Directorate,Assistance to Voluntary Organisations,F471,
http://opendatacommunities.org/id/london-borough-council/sutton,London Borough of Sutton,06/04/2020,1294814,933.39 , ASDA STORES,"HUB, FOOD PAYMENT",Resources Directorate,Assistance to Voluntary Organisations,F471,
http://opendatacommunities.org/id/london-borough-council/sutton,London Borough of Sutton,06/04/2020,1294814,263.00 , ASDA STORES,"HUB, FOOD PAYMENT",Resources Directorate,Assistance to Voluntary Organisations,F471,
http://opendatacommunities.org/id/london-borough-council/sutton,London Borough of Sutton,06/04/2020,1294814,(90.00), ARGOS LTD,REFUND OF INSTALLATION CHARGE IN RESPECT OF CRISIS LOAN AND GRANT SCHEME,Resources Directorate,Grants,F473,
http://opendatacommunities.org/id/london-borough-council/sutton,London Borough of Sutton,06/04/2020,1294814,(90.00), ARGOS LTD,REFUND OF INSTALLATION CHARGE IN RESPECT OF CRISIS LOAN AND GRANT SCHEME,Resources Directorate,Grants,F473,
http://opendatacommunities.org/id/london-borough-council/sutton,London Borough of Sutton,06/04/2020,1294814,(90.00), ARGOS LTD,REFUND OF INSTALLATION CHARGE IN RESPECT OF CRISIS LOAN AND GRANT SCHEME,Resources Directorate,Grants,F473,
http://opendatacommunities.org/id/london-borough-council/sutton,London Borough of Sutton,30/03/2020,1294814,141.95 , ARGOS LTD,CL&G,Resources Directorate,Grants,F473,
http://opendatacommunities.org/id/london-borough-council/sutton,London Borough of Sutton,30/03/2020,1294814,103.94 , ARGOS LTD,CL&G,Resources Directorate,Grants,F473,
http://opendatacommunities.org/id/london-borough-council/sutton,London Borough of Sutton,27/03/2020,1294814,162.94 , ARGOS LTD,CL&G,Resources Directorate,Grants,F473,
http://opendatacommunities.org/id/london-borough-council/sutton,London Borough of Sutton,04/04/2020,1294814,(90.00), ARGOS LTD,UNKNOWN,Resources Directorate,Grants,F473,
http://opendatacommunities.org/id/london-borough-council/sutton,London Borough of Sutton,01/04/2020,1294814,(90.00), ARGOS LTD,UNKNOWN,Resources Directorate,Grants,F473,
http://opendatacommunities.org/id/london-borough-council/sutton,London Borough of Sutton,14/04/2020,1294814,301.95 , ARGOS LTD,PURCHASE OF BUNK BEDS AND MATTRESSES FOR CRISIS GRANT,Resources Directorate,Grants,F473,
http://opendatacommunities.org/id/london-borough-council/sutton,London Borough of Sutton,04/04/2020,1294814,(90.00), ARGOS LTD,REFUND OF INSTALLATION CHARGE,Resources Directorate,Grants,F473,
http://opendatacommunities.org/id/london-borough-council/sutton,London Borough of Sutton,25/03/2020,1294814,165.95 , ARGOS LTD,PURCHASE OF SINGLE BED FOR CRISIS GRANT,Resources Directorate,Grants,F473,
http://opendatacommunities.org/id/london-borough-council/sutton,London Borough of Sutton,25/03/2020,1294814,133.94 , ARGOS LTD,PURCHASE OF MINI OVEN/ HOB FOR CRISIS GRANT,Resources Directorate,Grants,F473,
http://opendatacommunities.org/id/london-borough-council/sutton,London Borough of Sutton,25/03/2020,1294814,149.99 , ARGOS LTD,PURCHASE OF FRIDGE FREEZER FOR CRISIS GRANT,Resources Directorate,Grants,F473,
http://opendatacommunities.org/id/london-borough-council/sutton,London Borough of Sutton,27/04/2020,1294814,40.00 , LLOYDS BANK,CHARGE BY LLOYDS BANK IN ERROR,Resources Directorate,Fees - Other,F299,
http://opendatacommunities.org/id/london-borough-council/sutton,London Borough of Sutton,30/03/2020,1294814,"1,350.00 ", MED - PTS AMBULANCE SE,MED-PTS AMBULANCE TRANSPORT,Peoples Services Directorate,C.C.A Travel & Subsistance,H212,
http://opendatacommunities.org/id/london-borough-council/sutton,London Borough of Sutton,08/04/2020,1294814,25.19 , POSTURITE LTD,MOUSE WIRELESS,Peoples Services Directorate,Personal Requisites,F106,
http://opendatacommunities.org/id/london-borough-council/sutton,London Borough of Sutton,23/03/2020,1294814,(199.00), BRITISHPSYCHOLOGICALSO,REFUND 199 - A525 6417 9999,Peoples Services Directorate,Conferences - Fees,A525,
http://opendatacommunities.org/id/london-borough-council/sutton,London Borough of Sutton,22/04/2020,1294814,43.56 , CARESHOP,43.56 6452 6619 CARE SHOP - START MASKS.PDF,Peoples Services Directorate,Special,D535,
http://opendatacommunities.org/id/london-borough-council/sutton,London Borough of Sutton,21/04/2020,1294814,"20,405.95 ", MEDICINEDIRECT.CO.UK,"20,400 MASKS FROM MEDICINE DIRECT.PDF",Peoples Services Directorate,Special,D535,
http://opendatacommunities.org/id/london-borough-council/sutton,London Borough of Sutton,17/04/2020,1294814,395.93 , MEDISAVE,395.93 MEDICAL MASKS MEDI.PDF,Peoples Services Directorate,Health and Safety Equipment,F005,
http://opendatacommunities.org/id/london-borough-council/sutton,London Borough of Sutton,16/04/2020,1294814,47.94 , SP   MUZAMAL VENTURES,47.94 MUZA MEDICAL ALCHOL WIPES.PDF,Peoples Services Directorate,Health and Safety Equipment,F005,
http://opendatacommunities.org/id/london-borough-council/sutton,London Borough of Sutton,16/04/2020,1294814,29.96 , SP   MUZAMAL VENTURES,MUZAMEDICAL 29.96 ALCHOL WIPES.PDF,Peoples Services Directorate,Health and Safety Equipment,F005,
http://opendatacommunities.org/id/london-borough-council/sutton,London Borough of Sutton,14/04/2020,1294814,16.00 , WILKO RETAIL LIMITED,16.00 - F106 6452 6619 - WILKO .JPG,Peoples Services Directorate,Health and Safety Equipment,F005,
http://opendatacommunities.org/id/london-borough-council/sutton,London Borough of Sutton,14/04/2020,1294814,110.00 , WILKO RETAIL LIMITED,110.00 - F106 6452 6619 - WILKO .JP,Peoples Services Directorate,Health and Safety Equipment,F005,
http://opendatacommunities.org/id/london-borough-council/sutton,London Borough of Sutton,09/04/2020,1294814,23.10 , WILKO RETAIL LIMITED,23.10 - F106 6452 6619 - WILKO .JPG,Peoples Services Directorate,Health and Safety Equipment,F005,
http://opendatacommunities.org/id/london-borough-council/sutton,London Borough of Sutton,09/04/2020,1294814,11.00 , WILKO RETAIL LIMITED,11.00 - F106 6452 6619 - WILKO .JPG,Peoples Services Directorate,Health and Safety Equipment,F005,
http://opendatacommunities.org/id/london-borough-council/sutton,London Borough of Sutton,09/04/2020,1294814,31.38 , ASDA STORES,31.39 - F106 6452 6619 - ASDA .JPG,Peoples Services Directorate,Health and Safety Equipment,F005,
http://opendatacommunities.org/id/london-borough-council/sutton,London Borough of Sutton,09/04/2020,1294814,51.00 , POUNDLAND LTD 1211,255 CARE SHOP 0.PDF,Peoples Services Directorate,Health and Safety Equipment,F005,
http://opendatacommunities.org/id/london-borough-council/sutton,London Borough of Sutton,08/04/2020,1294814,255.00 , CARESHOP,255 CARE SHOP 0.PDF,Peoples Services Directorate,Health and Safety Equipment,F005,
http://opendatacommunities.org/id/london-borough-council/sutton,London Borough of Sutton,06/04/2020,1294814,84.00 , CARESHOP,84.00 - F005 6452 6619 - BUNZL RETAIL _ HEALTH CARE SUPPLIES LTD -.PNG,Peoples Services Directorate,Health and Safety Equipment,F005,
http://opendatacommunities.org/id/london-borough-council/sutton,London Borough of Sutton,26/03/2020,1294814,"2,111.64 ", GLOVE CLUB LTD,2111.64 - F005 6452 6619 - PPE EQUIPMENT.PDF,Peoples Services Directorate,Health and Safety Equipment,F005,
http://opendatacommunities.org/id/london-borough-council/sutton,London Borough of Sutton,08/04/2020,1294814,99.89 , AGE CO IADVISORS,94.90 AGE CO COMMODE AND BED PAN LINERS.PDF,Peoples Services Directorate,Books,F006,
http://opendatacommunities.org/id/london-borough-council/sutton,London Borough of Sutton,02/04/2020,1294814,250.80 , PROTECT DIRECT,250.80 F100 6500 6619 PROTEC DIRECT.PDF,Peoples Services Directorate,Materials - General,F100,
http://opendatacommunities.org/id/london-borough-council/sutton,London Borough of Sutton,02/04/2020,1294814,250.80 , PROTECT DIRECT,250.80 (2ND ORDER) F100 6500 6619 PROTEC DIRECT.PDF,Peoples Services Directorate,Materials - General,F100,
